bitfinex-derivatives/quotes_ETHF0:USTF0_20250518
["timestamp","ask_amount","ask_price","bid_price","bid_amount"]
[1747570267672,5.2074489,2494.5,2494.4,0.80152]
[1747570267967,5.43351654,2494.5,2494.4,0.80152]
[1747570269063,5.43352991,2494.5,2494.4,0.80152]
[1747570269562,1.53051414,2494.5,2494.4,0.80152]
[1747570270163,1.53051414,2494.5,2494.4,41.60152]
[1747570271164,1.53061786,2494.5,2494.4,41.60152]
[1747570272364,1.53084926,2494.5,2494.4,41.60152]
[1747570272867,0.22641613,2494.5,2494.4,41.60152]
[1747570273063,3.1452618,2494.6,2494.5,0.80149]
[1747570273263,3.37186432,2494.6,2494.5,2.21879]
[1747570273970,3.37202448,2494.6,2494.5,2.21879]
[1747570274153,3.3720438,2494.6,2494.5,2.21879]
[1747570274357,3.1452618,2494.6,2494.5,2.21879]
[1747570274565,3.37208696,2494.6,2494.5,2.21879]
[1747570274766,3.37209107,2494.6,2494.5,2.21879]
[1747570275179,3.37209107,2494.6,2494.5,3.66699]
[1747570275364,3.37209107,2494.6,2494.5,13.19499]
[1747570275564,2.2549318,2494.6,2494.5,21.40279]
[1747570276365,0.98843201,2494.8,2494.7,0.80142]
[1747570276668,0.22682176,2494.8,2494.7,10.69042]
[1747570276857,0.98843201,2495.0,2494.9,0.80136]
[1747570277055,1.2151996,2495.0,2494.9,10.31136]
[1747570277671,2.46752951,2495.0,2494.9,10.31136]
[1747570278170,2.24076192,2495.0,2494.9,10.31136]
[1747570278669,2.24076192,2495.0,2494.9,11.68196]
[1747570279361,2.24076192,2495.0,2494.9,16.68196]
[1747570279559,2.99340933,2495.0,2494.9,16.68196]
[1747570279960,2.11831933,2495.0,2494.9,16.68196]
[1747570280167,1.30784933,2495.0,2494.9,16.68196]
[1747570280365,1.30784933,2495.0,2494.9,11.68196]
[1747570280767,0.43185933,2495.0,2494.9,16.68196]
[1747570280974,9.33e-06,2495.0,2494.9,6.50303136]
[1747570281164,9.33e-06,2495.0,2494.9,10.68836]
[1747570281564,1.02766266,2495.0,2494.9,20.29636]
[1747570281770,1.65303266,2495.0,2494.9,20.29636]
[1747570282065,1.65303266,2495.0,2494.9,10.68836]
[1747570282270,1.65303224,2495.0,2494.9,0.80136]
[1747570282473,1.65303224,2495.0,2494.9,10.39336]
[1747570282773,1.65302291,2495.0,2494.9,10.39336]
[1747570284370,1.4267,2495.0,2494.9,10.39336]
[1747570284672,1.4267,2495.0,2494.9,11.74446]
[1747570285075,3.2078,2495.1,2495.0,0.80133]
[1747570285377,3.2078,2495.1,2495.0,2.15243]
[1747570285768,1.3845,2495.5,2495.4,0.8012]
[1747570285769,4.5923,2495.5,2495.4,0.8012]
[1747570285970,4.81853147,2495.5,2495.4,10.3932]
[1747570287876,6.76865521,2495.6,2495.5,0.80117]
[1747570288169,6.76865521,2495.6,2495.5,2.21657]
[1747570288373,5.92994521,2495.6,2495.5,43.01657]
[1747570288769,5.12560521,2495.6,2495.5,48.01657]
[1747570288979,4.09079521,2495.6,2495.5,52.44862881]
[1747570289276,2.24992521,2495.6,2495.5,52.44862881]
[1747570289574,1.38065521,2495.6,2495.5,52.44862881]
[1747570289771,0.21981521,2495.6,2495.5,52.44862881]
[1747570289976,3.9e-07,2495.7,2495.6,0.80113]
[1747570290181,3.9e-07,2495.7,2495.6,13.50693]
[1747570290370,3.9e-07,2495.7,2495.6,22.78542135]
[1747570290570,0.62496331,2495.9,2495.8,0.80107]
[1747570290878,0.62496331,2495.9,2495.8,37.32207]
[1747570291070,0.62496331,2495.9,2495.8,46.65002142]
[1747570291270,0.62496331,2495.9,2495.8,87.45002142]
[1747570291571,2.36070914,2496.2,2496.1,0.80097]
[1747570291770,5.56850914,2496.2,2495.8,26.931]
[1747570291976,4.00881,2496.0,2495.9,9.59]
[1747570292170,0.80111,2495.7,2494.9,26.931]
[1747570292378,0.80114,2495.6,2495.5,0.80115]
[1747570292676,1.4446,2495.6,2495.5,0.80115]
[1747570292875,2.62839682,2495.6,2495.5,0.80115]
[1747570293178,2.62839682,2495.6,2495.5,0.80117]
[1747570293375,1.18379682,2495.6,2495.5,0.80117]
[1747570295277,1.18379682,2495.6,2495.5,41.60117]
[1747570299478,1.18379682,2495.6,2495.5,60.62117]
[1747570300683,1.18379682,2495.6,2495.5,51.19017]
[1747570301686,2.36494793,2495.6,2495.5,51.19017]
[1747570301985,3.84534793,2495.6,2495.5,51.19017]
[1747570305988,2.36494793,2495.6,2495.5,52.66387]
[1747570306989,1.34309793,2495.6,2495.5,52.66387]
[1747570307286,7.93e-06,2495.6,2495.5,65.46880669]
[1747570307680,2.36070914,2495.9,2495.5,65.46880669]
[1747570307887,1.4466,2496.1,2496.0,0.80101]
[1747570308088,1.4466,2496.1,2496.0,19.72501]
[1747570308290,2.36070914,2496.2,2496.1,0.80097]
[1747570308489,2.5872183,2496.2,2496.1,2.17567]
[1747570308893,2.36070914,2496.2,2496.1,2.17567]
[1747570309184,2.36070914,2496.2,2496.1,0.80097]
[1747570309389,3.98620419,2496.2,2496.1,19.70697]
[1747570309589,3.75970914,2496.2,2496.1,19.70297]
[1747570309790,3.98620286,2496.2,2496.1,19.70297]
[1747570310490,3.98619987,2496.2,2496.1,19.70297]
[1747570310686,3.98619987,2496.2,2496.1,19.68797]
[1747570310894,0.80098,2496.1,2496.0,9.588]
[1747570311087,7.12117073,2496.1,2496.0,0.80101]
[1747570311286,6.32019073,2496.1,2495.5,42.8029]
[1747570311493,1.02752073,2496.0,2495.9,0.80104]
[1747570311788,2.51142073,2496.0,2495.9,0.80104]
[1747570312392,2.51138724,2496.0,2495.9,0.80104]
[1747570312588,1.71035724,2496.0,2495.9,0.80104]
[1747570313197,1.71035724,2496.0,2495.9,10.08104]
[1747570314198,1.71052893,2496.0,2495.9,10.08104]
[1747570315390,1.71052893,2496.0,2495.9,0.80104]
[1747570315598,2.51153893,2496.0,2495.9,10.08104]
[1747570316003,2.51168336,2496.0,2495.9,10.08104]
[1747570316294,1.71067821,2496.0,2495.9,10.08104]
[1747570317889,1.71077609,2496.0,2495.9,10.08104]
[1747570319792,1.71076834,2496.0,2495.9,10.08104]
[1747570320210,1.71076834,2496.0,2495.9,0.80104]
[1747570320397,1.71076834,2496.0,2495.9,10.08104]
[1747570320703,2.88901227,2496.0,2495.9,10.08104]
[1747570320998,3.69002227,2496.0,2495.9,10.08104]
[1747570321198,2.88901227,2496.0,2495.9,10.08104]
[1747570321795,2.88901227,2496.0,2495.9,0.80104]
[1747570321992,2.88906716,2496.0,2495.9,10.08104]
[1747570322291,6.84099035,2496.0,2495.9,10.08104]
[1747570322593,0.80113,2495.7,2495.6,10.08113]
[1747570322798,4.23585323,2495.7,2495.6,10.08113]
[1747570322985,4.23585509,2495.7,2495.6,0.80113]
[1747570323189,4.23585509,2495.7,2495.6,10.08113]
[1747570323493,0.80115,2495.6,2495.5,0.80114]
[1747570323793,2.34607509,2495.6,2495.5,10.08114]
[1747570325002,2.345987,2495.6,2495.5,10.08114]
[1747570325401,6.67510534,2495.6,2495.5,10.08114]
[1747570325702,10.87395534,2495.6,2494.8,9.281]
[1747570325903,0.80136,2494.9,2494.8,0.80138]
[1747570326094,0.80139,2494.8,2494.7,0.8014]
[1747570326296,3.86218822,2494.8,2494.7,10.0824]
[1747570326600,3.86218822,2494.8,2494.7,9.281]
[1747570326802,3.86189399,2494.8,2494.7,10.08242]
[1747570327002,5.04013792,2494.8,2494.7,10.08242]
[1747570327204,4.23874792,2494.8,2494.4,42.2144]
[1747570327398,0.22650399,2494.7,2494.5,9.281]
[1747570327711,1.62750399,2494.6,2494.5,0.80148]
[1747570327912,1.62750399,2494.6,2494.5,10.08248]
[1747570328704,5.17049723,2494.6,2494.5,10.08248]
[1747570330005,3.76949723,2494.6,2494.5,10.08248]
[1747570330201,3.54341152,2494.6,2494.5,10.08248]
[1747570331798,3.54341152,2494.6,2494.5,10.08448]
[1747570332198,4.98851152,2494.6,2494.5,9.283]
[1747570332398,7.34769596,2494.6,2494.5,9.283]
[1747570332598,7.34769596,2494.6,2494.5,10.08449]
[1747570332804,4.98252837,2494.6,2494.5,10.08449]
[1747570333000,0.8015,2494.5,2494.4,0.80151]
[1747570333207,4.76552444,2494.5,2494.4,0.80151]
[1747570333502,1.55772444,2494.5,2494.4,0.80151]
[1747570333905,1.332,2494.5,2494.4,0.80151]
[1747570334607,2.51024393,2494.5,2494.4,0.80151]
[1747570335501,3.31173393,2494.5,2494.4,0.80151]
[1747570335699,5.71804393,2494.5,2494.4,0.80151]
[1747570339106,4.38604393,2494.5,2494.4,0.80151]
[1747570340714,5.75354393,2494.5,2494.4,10.08551]
[1747570341810,4.38604393,2494.5,2494.4,10.08551]
[1747570342613,5.75644393,2494.5,2494.4,10.08551]
[1747570343421,5.75644393,2494.5,2494.4,9.82051]
[1747570343626,5.75644393,2494.5,2494.4,0.80151]
[1747570343820,7.05994393,2494.5,2494.4,0.80151]
[1747570344023,7.28539453,2494.5,2494.1,40.8]
[1747570344220,3.2078,2494.2,2494.1,0.80159]
[1747570344526,4.23483979,2494.2,2494.1,9.82059]
[1747570344722,1.3381,2494.3,2494.2,0.80158]
[1747570344922,1.56352409,2494.3,2494.2,0.80158]
[1747570345230,1.3381,2494.3,2494.2,0.80158]
[1747570345423,1.56353547,2494.3,2494.2,0.80158]
[1747570345631,1.56353547,2494.3,2494.2,9.82058]
[1747570345927,1.56354089,2494.3,2494.2,9.82058]
[1747570347031,2.51000979,2494.3,2494.2,9.82058]
[1747570347436,2.73555571,2494.3,2494.2,9.82058]
[1747570347627,2.73555577,2494.3,2494.2,9.82058]
[1747570348327,4.30715182,2494.3,2494.2,9.82058]
[1747570350627,2.96905182,2494.3,2494.2,9.82058]
[1747570350829,2.74350584,2494.3,2494.2,9.82058]
[1747570351526,1.17190979,2494.3,2494.2,9.82058]
[1747570354234,1.39838108,2494.3,2494.2,9.82058]
[1747570354732,2.96997713,2494.3,2494.2,9.82058]
[1747570355132,2.97000209,2494.3,2494.2,9.82058]
[1747570357530,1.39840604,2494.3,2494.2,9.82058]
[1747570357737,3.76357363,2494.3,2494.2,9.82058]
[1747570360338,1.39840604,2494.3,2494.2,18.68558]
[1747570360836,1.39875252,2494.3,2494.2,18.68558]
[1747570362438,1.39875252,2494.3,2494.2,21.89338]
[1747570362637,0.35018979,2494.3,2494.2,21.89338]
[1747570362855,9.79e-06,2494.3,2494.2,26.89338]
[1747570363136,0.29407738,2494.4,2494.3,0.80155]
[1747570363430,7.38e-06,2494.4,2494.3,6.42423888]
[1747570363631,2.31722319,2494.9,2494.8,0.80139]
[1747570363838,1.37812319,2494.9,2494.8,21.89419]
[1747570364030,0.47095319,2494.9,2494.8,31.49992512]
[1747570364231,3.19e-06,2494.9,2494.8,73.74272512]
[1747570365237,0.05534474,2495.0,2494.9,0.80136]
[1747570365537,4.74e-06,2495.0,2494.9,2.23756]
[1747570366038,4.74e-06,2495.0,2494.9,43.03756]
[1747570367435,4.74e-06,2495.0,2494.9,51.90156]
[1747570367939,1.4161,2495.3,2495.2,0.80126]
[1747570368139,1.4161,2495.3,2495.2,9.81926]
[1747570369336,6.4161,2495.3,2494.9,40.8]
[1747570369542,0.80132,2495.1,2495.0,9.018]
[1747570369745,1.02042343,2495.1,2495.0,9.81933]
[1747570370042,7.41272343,2495.1,2495.0,9.018]
[1747570370237,0.80138,2494.9,2494.8,0.80138]
[1747570370434,0.80138,2494.9,2494.8,9.018]
[1747570370435,1.02048343,2494.9,2494.8,9.018]
[1747570370634,4.22828343,2494.9,2494.8,9.018]
[1747570370834,5.62058343,2494.9,2494.8,9.018]
[1747570371037,5.62058343,2494.9,2494.8,9.81939]
[1747570371339,4.81920343,2494.9,2494.8,9.81939]
[1747570371644,4.81920343,2494.9,2494.8,0.80139]
[1747570371837,5.62056343,2494.9,2494.8,9.81939]
[1747570372444,5.40146,2494.9,2494.8,0.80139]
[1747570372635,5.62054493,2494.9,2494.8,9.81939]
[1747570374743,4.81918493,2494.9,2494.8,9.81939]
[1747570375240,1.61138493,2494.9,2494.8,0.80139]
[1747570375439,1.3923,2494.9,2494.8,0.80139]
[1747570375640,1.3923,2494.9,2494.8,9.66339]
[1747570375839,6.61145985,2494.9,2494.7,0.80141]
[1747570376037,6.91974767,2494.9,2494.8,0.80139]
[1747570376339,7.13890703,2494.9,2494.8,0.80139]
[1747570376539,8.5996951,2494.9,2494.8,0.80139]
[1747570376736,7.7983351,2494.9,2494.8,0.80139]
[1747570376943,8.5996951,2494.9,2494.8,0.80139]
[1747570377943,8.5998203,2494.9,2494.8,0.80139]
[1747570378346,0.80141,2494.8,2494.7,0.8014]
[1747570378537,0.80144,2494.7,2494.6,0.80143]
[1747570378841,1.62798456,2494.7,2494.6,0.80143]
[1747570379142,2.76519332,2494.7,2494.6,0.80143]
[1747570379342,4.19959332,2494.7,2494.6,0.80143]
[1747570379546,2.79089332,2494.7,2494.6,0.80143]
[1747570379732,1.35649332,2494.7,2494.6,2.16403]
[1747570379936,1.13720876,2494.7,2494.6,2.16403]
[1747570380941,1.13720876,2494.7,2494.6,11.80103]
[1747570381139,0.29106876,2494.7,2494.6,11.80103]
[1747570381639,0.29106876,2494.7,2494.6,44.80923]
[1747570381839,0.29106876,2494.7,2494.6,50.46443]
[1747570382142,0.29106876,2494.7,2494.6,53.67223]
[1747570382348,0.29106876,2494.7,2494.6,51.87733]
[1747570383247,1.75606876,2494.7,2494.6,59.32543]
[1747570383449,3.47465504,2494.7,2494.6,50.46443]
[1747570383966,3.25526876,2494.7,2494.6,50.46443]
[1747570384141,3.25526876,2494.7,2494.5,0.80146]
[1747570384347,4.00926,2494.6,2494.5,0.80146]
[1747570384549,5.45516,2494.6,2494.5,9.66346]
[1747570385243,4.6537,2494.6,2494.5,9.66346]
[1747570385950,4.87306579,2494.6,2494.5,9.66346]
[1747570386448,4.87306579,2494.6,2494.5,9.66446]
[1747570386751,5.45516,2494.6,2494.5,9.66446]
[1747570387146,6.45132759,2494.6,2494.5,9.66446]
[1747570387445,6.23197519,2494.6,2494.5,9.66446]
[1747570387645,6.45134137,2494.6,2494.5,9.66446]
[1747570387843,3.02417519,2494.6,2494.5,0.80146]
[1747570388044,3.02417519,2494.6,2494.5,9.66446]
[1747570389953,3.02417519,2494.6,2494.5,0.80146]
[1747570390247,3.82563519,2494.6,2494.5,9.66446]
[1747570390452,0.80152,2494.5,2494.4,0.8015]
[1747570390645,5.46979,2494.5,2494.4,8.863]
[1747570391145,5.46979,2494.5,2494.4,0.80152]
[1747570391552,0.80152,2494.4,2494.3,9.66453]
[1747570391748,2.26202,2494.4,2494.3,0.80153]
[1747570391951,1.4605,2494.4,2494.3,9.66453]
[1747570394354,2.26202,2494.4,2494.3,9.66453]
[1747570394555,1.4605,2494.4,2494.3,9.66453]
[1747570394757,2.26202,2494.4,2494.3,9.66453]
[1747570394956,1.4605,2494.4,2494.3,9.66453]
[1747570395452,2.58819661,2494.4,2494.3,9.66453]
[1747570395652,3.38971661,2494.4,2494.3,9.66453]
[1747570395852,2.58819661,2494.4,2494.3,9.66453]
[1747570396053,3.38971661,2494.4,2494.3,9.66453]
[1747570396555,2.58819661,2494.4,2494.3,9.66453]
[1747570397356,0.80155,2494.3,2494.2,0.80157]
[1747570397657,3.61685,2494.3,2494.2,9.66557]
[1747570398758,0.80161,2494.2,2494.1,0.80159]
[1747570398963,0.80173,2493.8,2493.7,9.66572]
[1747570399259,3.2078,2493.9,2493.8,0.8017]
[1747570399858,4.6313,2493.9,2493.8,0.8017]
[1747570400058,5.43298,2493.9,2493.8,0.8017]
[1747570400360,4.6313,2493.9,2493.8,0.8017]
[1747570400856,4.6313,2493.9,2493.8,2.2694]
[1747570401159,8.12625385,2493.9,2493.8,2.2694]
[1747570402459,8.92793385,2493.9,2493.8,2.2694]
[1747570402759,8.12625385,2493.9,2493.8,0.8017]
[1747570402957,8.92793385,2493.9,2493.8,0.8017]
[1747570403159,8.12625385,2493.9,2493.8,9.6667]
[1747570403963,8.12625385,2493.9,2493.8,0.8017]
[1747570404158,8.92793385,2493.9,2493.8,0.8017]
[1747570404956,8.12625385,2493.9,2493.8,0.8017]
[1747570405961,8.92793385,2493.9,2493.8,0.8017]
[1747570406261,8.12625385,2493.9,2493.8,0.8017]
[1747570407859,8.12625385,2493.9,2493.8,2.2794]
[1747570408857,5.75899661,2493.9,2493.8,2.2794]
[1747570409055,4.33549661,2493.9,2493.8,2.2794]
[1747570409256,1.12769661,2493.9,2493.8,5.0937]
[1747570410467,0.25603661,2493.9,2493.8,13.3015]
[1747570410764,0.65966383,2494.1,2493.8,20.5792]
[1747570410961,1.5052,2494.0,2493.9,9.66068]
[1747570411157,1.5052,2494.0,2493.9,0.80168]
[1747570411556,1.5052,2494.0,2493.9,9.66068]
[1747570412056,1.5052,2494.0,2493.9,0.80168]
[1747570412263,0.65966383,2494.1,2494.0,0.80165]
[1747570412762,0.65966383,2494.1,2494.0,2.24655]
[1747570414961,0.65966383,2494.1,2494.0,3.63095]
[1747570415167,3.83e-06,2494.1,2494.0,8.63095]
[1747570417270,1.4052,2494.6,2494.5,0.80149]
[1747570417475,1.4052,2494.6,2494.5,9.66049]
[1747570423074,2.20666,2494.6,2494.5,9.66049]
[1747570425383,1.4052,2494.6,2494.5,9.66049]
[1747570426179,1.4645,2494.7,2494.6,0.80146]
[1747570426376,2.9051,2494.7,2494.6,0.80146]
[1747570426781,1.4645,2494.7,2494.6,0.80146]
[1747570429090,2.9051,2494.7,2494.6,0.80146]
[1747570429591,0.80151,2494.5,2494.4,0.80149]
[1747570429789,4.00931,2494.5,2494.4,0.80149]
[1747570429987,0.80152,2494.4,2494.3,9.65853]
[1747570430187,3.57642,2494.4,2494.3,9.65853]
[1747570430491,0.80158,2494.3,2494.2,0.80156]
[1747570430694,2.19838,2494.3,2494.2,9.65856]
[1747570431189,2.19838,2494.3,2494.2,0.80156]
[1747570431396,2.19838,2494.3,2494.2,9.65856]
[1747570433700,0.80158,2494.2,2494.1,0.8016]
[1747570433888,6.088,2494.2,2494.1,9.6586]
[1747570434096,6.88958,2494.2,2494.1,9.6586]
[1747570434990,3.68178,2494.2,2494.1,9.6586]
[1747570435190,6.88958,2494.2,2494.1,9.6586]
[1747570436200,6.088,2494.2,2494.1,9.6586]
[1747570436392,6.88958,2494.2,2494.1,9.6586]
[1747570437197,6.088,2494.2,2494.1,9.6586]
[1747570437695,6.88958,2494.2,2494.1,8.857]
[1747570437993,0.80162,2494.1,2493.9,8.842]
[1747570438193,2.30065,2494.0,2493.5,8.842]
[1747570438499,4.00955,2493.8,2493.7,0.80174]
[1747570439304,5.50855,2493.8,2493.7,0.80174]
[1747570440199,4.7068,2493.8,2493.7,0.80174]
[1747570440393,5.78591148,2494.2,2494.1,0.80162]
[1747570440596,7.18051148,2494.2,2494.1,0.80162]
[1747570441898,8.58881148,2494.2,2494.1,0.80162]
[1747570443201,7.59819707,2494.2,2494.1,0.80162]
[1747570443501,4.39039707,2494.2,2494.1,0.80162]
[1747570443702,7.59819707,2494.2,2494.1,0.80162]
[1747570444199,0.80162,2494.1,2494.0,9.64363]
[1747570444407,1.4223,2494.1,2494.0,9.64363]
[1747570444710,0.80168,2494.0,2493.9,0.80166]
[1747570444999,0.80168,2494.0,2493.9,9.64466]
[1747570446303,2.35173707,2494.1,2494.0,0.80165]
[1747570448201,2.35171707,2494.1,2494.0,0.80165]
[1747570449703,3.34233148,2494.1,2494.0,0.80165]
[1747570451498,4.46700745,2494.1,2494.0,9.64465]
[1747570452599,2.24308745,2494.1,2494.0,9.64465]
[1747570455508,1.12467597,2494.1,2494.0,9.64465]
[1747570457616,2.30887161,2494.1,2494.0,9.64465]
[1747570458312,2.30887161,2494.1,2494.0,12.85245]
[1747570460611,1.12467597,2494.1,2494.0,12.85245]
[1747570463517,2.36863453,2494.5,2494.2,0.80158]
[1747570463718,3.2078,2494.6,2494.5,0.80149]
[1747570463914,3.2078,2494.6,2494.5,9.64349]
[1747570464221,0.99061441,2494.7,2494.6,0.80146]
[1747570464409,0.99061441,2494.7,2494.6,19.99266]
[1747570464716,0.99061441,2494.7,2494.6,60.79166]
[1747570468918,2.8574,2494.9,2494.6,60.79166]
[1747570469128,2.8574,2494.9,2494.8,0.80139]
[1747570473525,0.99061441,2495.1,2494.8,0.80139]
[1747570473526,0.99061441,2495.1,2495.0,0.80133]
[1747570473720,3.77651441,2495.1,2495.0,9.61833]
[1747570473917,4.57780441,2495.1,2495.0,9.61833]
[1747570474130,3.77651441,2495.1,2495.0,9.61833]
[1747570477427,2.7859,2495.1,2495.0,9.61833]
[1747570482430,3.5872,2495.1,2495.0,8.817]
[1747570482734,0.8014,2494.9,2494.8,9.61837]
[1747570483334,2.1632,2494.9,2494.8,9.61837]
[1747570485934,1.3618,2494.9,2494.8,9.61837]
[1747570486730,2.16316,2494.9,2494.8,9.61837]
[1747570488039,1.3618,2494.9,2494.8,9.61837]
[1747570489440,2.16316,2494.9,2494.8,9.61837]
[1747570490430,1.3618,2494.9,2494.4,40.8]
[1747570490636,4.00926,2494.6,2494.5,9.61849]
[1747570491037,3.2078,2494.6,2494.5,9.61849]
[1747570491231,2.30295,2494.7,2494.6,0.80146]
[1747570491432,1.4067,2494.8,2494.7,0.80142]
[1747570491639,2.20809,2494.8,2494.7,0.80142]
[1747570492632,2.33586421,2494.8,2494.7,0.80142]
[1747570492835,1.11838862,2494.8,2494.7,0.80142]
[1747570496347,2.30605,2495.0,2494.9,0.80136]
[1747570497344,1.5047,2495.0,2494.9,0.80136]
[1747570498338,0.99061441,2495.1,2495.0,0.80133]
[1747570498730,1.79191441,2495.1,2495.0,0.80133]
[1747570498931,1.79191441,2495.1,2495.0,2.19923]
[1747570499139,4.00908,2495.2,2495.1,0.8013]
[1747570499746,6.36554588,2495.2,2495.1,0.8013]
[1747570500435,7.16680588,2495.2,2495.1,0.8013]
[1747570500939,7.48171205,2495.2,2495.1,0.8013]
[1747570501639,4.27391205,2495.2,2495.1,0.8013]
[1747570501937,0.8013,2495.1,2495.0,2.8708]
[1747570502145,0.80136,2495.0,2494.7,8.787]
[1747570502335,1.3784,2494.9,2494.8,0.80139]
[1747570502737,2.49456617,2494.9,2494.8,0.80139]
[1747570502942,2.49456617,2494.9,2494.8,2.20689]
[1747570503243,1.11616617,2494.9,2494.8,10.98889]
[1747570504245,1.11616617,2494.9,2494.8,2.20689]
[1747570505845,1.91752617,2494.9,2494.8,9.58839]
[1747570506049,4.79402617,2494.9,2494.8,9.58839]
[1747570506346,8.00182617,2494.9,2494.8,9.58839]
[1747570506847,7.20046617,2494.9,2494.8,9.58839]
[1747570507345,3.99266617,2494.9,2494.8,9.58839]
[1747570507947,1.11616617,2494.9,2494.8,9.58839]
[1747570508440,3.48761551,2494.9,2494.8,9.58839]
[1747570508745,4.60763036,2494.9,2494.8,11.11909]
[1747570509046,4.60763036,2494.9,2494.8,2.33209]
[1747570509241,4.60763036,2494.9,2494.8,11.11909]
[1747570510548,7.43193036,2494.9,2494.8,11.11909]
[1747570511143,8.23329036,2494.9,2494.8,11.11909]
[1747570511448,8.26828102,2494.9,2494.8,9.58839]
[1747570511644,0.8014,2494.8,2494.7,0.8014]
[1747570511952,2.2363,2494.8,2494.7,9.5884]
[1747570512243,2.2363,2494.8,2494.7,0.8014]
[1747570512449,3.35246617,2494.8,2494.7,9.5884]
[1747570512752,0.80142,2494.7,2494.5,4.6134]
[1747570512943,2.8728,2494.7,2494.6,9.58843]
[1747570514050,4.92219694,2494.7,2494.6,9.58843]
[1747570514250,4.92219694,2494.7,2494.6,11.04223]
[1747570516952,6.04221179,2494.7,2494.6,11.04223]
[1747570520547,6.04221179,2494.7,2494.6,9.58843]
[1747570520946,3.67108102,2494.7,2494.6,9.58843]
[1747570523451,2.23618102,2494.7,2494.6,10.97993]
[1747570524353,2.23618102,2494.7,2494.6,0.80143]
[1747570524549,2.23618102,2494.7,2494.6,9.58943]
[1747570524857,2.23618102,2494.7,2494.6,11.05043]
[1747570525457,4.60575039,2494.7,2494.6,11.05043]
[1747570527359,1.12001485,2494.7,2494.6,12.48773]
[1747570529759,0.12774365,2494.7,2494.6,12.48773]
[1747570531460,3.2078,2494.9,2494.8,0.80139]
[1747570532660,3.8744712,2495.1,2495.0,0.80133]
[1747570532661,2.4894712,2495.1,2495.0,0.80133]
[1747570532860,2.4894712,2495.1,2495.0,9.55433]
[1747570533364,2.4894712,2495.1,2495.0,10.94793]
[1747570534568,0.9922712,2495.1,2495.0,10.94793]
[1747570535466,1.2e-06,2495.1,2495.0,10.94793]
[1747570535757,1.2e-06,2495.3,2495.2,0.80126]
[1747570536163,1.2e-06,2495.3,2495.2,5.80126]
[1747570536365,1.2e-06,2495.3,2495.2,11.6527024]
[1747570536760,1.2e-06,2495.3,2495.2,52.4527024]
[1747570538963,0.2780604,2495.6,2495.5,0.80117]
[1747570539162,1.76590607,2495.8,2495.7,0.8011]
[1747570539364,6.07e-06,2495.8,2495.7,0.8011]
[1747570539565,6.07e-06,2495.8,2495.7,52.27687919]
[1747570540070,6.07e-06,2495.8,2495.7,48.74597919]
[1747570540368,6.07e-06,2495.8,2495.7,62.0437]
[1747570541670,0.66027165,2495.9,2495.8,0.80107]
[1747570541861,0.66027165,2495.9,2495.8,5.43807]
[1747570542059,0.66027165,2495.9,2495.8,9.72237078]
[1747570542570,0.66027165,2495.9,2495.8,27.21037078]
[1747570543568,0.66027165,2495.9,2495.8,22.92607]
[1747570543771,0.66027165,2495.9,2495.8,5.43807]
[1747570543972,0.66027165,2495.9,2495.8,22.92507]
[1747570544669,0.66027165,2495.9,2495.8,22.92407]
[1747570545777,0.66027165,2495.9,2495.8,27.34780591]
[1747570547278,1.4919,2496.2,2496.1,0.80098]
[1747570547869,1.4919,2496.2,2496.1,4.00878]
[1747570548072,1.4919,2496.2,2496.1,5.38788]
[1747570548272,1.4919,2496.2,2496.1,4.00878]
[1747570548481,1.4919,2496.2,2496.1,3.2078]
[1747570548782,0.801,2496.1,2496.0,8.729]
[1747570549085,0.801,2496.1,2496.0,18.27901]
[1747570549379,0.80098,2496.1,2496.0,18.27901]
[1747570549580,2.29286,2496.2,2496.0,18.27901]
[1747570549778,1.4919,2496.2,2496.1,0.80097]
[1747570551285,0.80102,2496.0,2495.8,3.2078]
[1747570551481,3.0037,2495.9,2495.8,4.00887]
[1747570551680,3.0037,2495.9,2495.8,12.75787]
[1747570551879,3.0037,2495.9,2495.8,21.48387]
[1747570554485,1.4824,2495.9,2495.8,21.48387]
[1747570554691,1.4824,2495.9,2495.8,22.93367]
[1747570555194,1.4824,2495.9,2495.8,21.48387]
[1747570556185,1.4824,2495.9,2495.8,22.93367]
[1747570556491,1.4422,2496.2,2496.1,0.80097]
[1747570557893,2.8981,2496.2,2496.1,0.80097]
[1747570559888,3.69907,2496.2,2495.8,4.00887]
[1747570560084,2.2793,2496.1,2496.0,0.80101]
[1747570560280,1.4783,2496.1,2496.0,0.80101]
[1747570560792,0.80103,2496.0,2495.9,0.80102]
[1747570561086,4.6861,2496.1,2495.8,0.80105]
[1747570561087,0.80106,2495.9,2495.8,0.80105]
[1747570561286,1.4783,2495.9,2495.8,9.51705]
[1747570563983,1.4422,2496.2,2496.1,0.80097]
[1747570564391,2.24314,2496.2,2496.1,0.80097]
[1747570564589,1.4422,2496.2,2496.1,0.80097]
[1747570565386,2.7616,2496.2,2496.1,0.80097]
[1747570565597,3.56254,2496.2,2496.1,0.80097]
[1747570566597,2.7616,2496.2,2496.1,0.80097]
[1747570571601,1.4736,2496.3,2496.0,2.653]
[1747570571602,1.4736,2496.3,2496.2,0.80094]
[1747570571803,1.4736,2496.3,2496.2,9.51694]
[1747570576707,1.4736,2496.3,2496.2,0.80094]
[1747570577007,1.4736,2496.3,2496.2,18.21594]
[1747570578007,1.3203,2496.4,2496.3,0.80091]
[1747570578207,1.3203,2496.4,2496.3,2.15621]
[1747570579613,2.01857165,2496.5,2496.4,0.80088]
[1747570579909,0.66027165,2496.5,2496.4,2.19118]
[1747570580109,7.24496913,2496.6,2496.5,0.80085]
[1747570583111,4.0834,2496.6,2496.5,0.80085]
[1747570583815,4.88421,2496.6,2496.5,9.51585]
[1747570584210,4.2110734,2496.6,2496.1,5.21023]
[1747570584416,4.00871,2496.4,2496.3,0.80088]
[1747570584917,4.00871,2496.4,2496.3,9.51588]
[1747570585516,4.00871,2496.4,2496.3,0.80088]
[1747570585707,4.00871,2496.4,2496.3,9.51588]
[1747570586410,3.2078,2496.4,2496.3,9.51588]